bitfinex-derivatives/quotes_ETHF0:USTF0_20251107
["timestamp","ask_amount","ask_price","bid_price","bid_amount"]
[1762474103445,0.75379,3326.4,3326.3,0.00450931]
[1762474103642,0.169,3326.0,3325.2,0.48746]
[1762474103846,0.48746,3325.2,3325.1,0.48747]
[1762474104042,3.2078,3325.2,3324.3,2.11344453]
[1762474104249,0.1459,3324.6,3323.5,0.65531]
[1762474104437,3.2078,3323.8,3323.0,0.1676]
[1762474104643,0.48774,3323.3,3323.2,0.12032]
[1762474104948,0.00450931,3323.7,3323.3,0.48773]
[1762474105149,0.00450931,3323.7,3323.5,0.48771]
[1762474105350,0.00450931,3323.7,3323.5,3.69551]
[1762474105938,0.00450931,3323.7,3323.6,0.2808]
[1762474106341,0.00450931,3323.7,3323.6,0.40114]
[1762474106539,0.00450931,3323.7,3323.6,8.40114]
[1762474108246,0.00450931,3323.7,3323.5,3.69551]
[1762474108247,3.2078,3325.0,3324.5,0.48756]
[1762474108451,3.2078,3325.0,3324.3,0.48759]
[1762474108452,0.48756,3324.6,3324.3,0.48759]
[1762474108647,3.2078,3325.0,3324.2,3.2078]
[1762474108854,0.48755,3324.6,3324.2,3.2078]
[1762474109345,0.48757,3324.5,3324.4,0.48757]
[1762474109553,0.00315712,3324.6,3324.4,0.48757]
[1762474109852,0.48759,3324.4,3324.2,3.2078]
[1762474110147,0.00315712,3324.6,3324.2,3.2078]
[1762474110352,0.00315712,3324.6,3324.2,3.6954]
[1762474110353,0.48758,3324.4,3324.2,3.6954]
[1762474110653,0.48757,3324.5,3324.3,0.48758]
[1762474110949,0.17215712,3324.6,3324.4,0.48757]
[1762474111148,0.48759,3324.3,3324.2,3.2078]
[1762474111348,0.48758,3324.5,3324.2,3.2078]
[1762474111750,0.00315712,3324.6,3324.5,0.48756]
[1762474112352,0.00315712,3324.6,3324.2,3.2078]
[1762474112353,0.00315712,3324.6,3324.0,0.28792]
[1762474112552,0.00315712,3324.6,3324.5,0.2808]
[1762474113454,0.00315712,3324.6,3324.5,0.76836]
[1762474113853,0.65639,3325.8,3325.6,0.48739]
[1762474114056,0.60769,3325.7,3325.6,0.48739]
[1762474114245,0.48739,3325.7,3325.6,0.48739]
[1762474114854,0.00381293,3325.7,3325.6,0.49082222]
[1762474116144,0.74600293,3325.7,3325.6,0.00343222]
[1762474116653,0.86628294,3325.7,3325.6,0.00343222]
[1762474116851,0.86628294,3325.7,3325.6,0.49083222]
[1762474117049,0.00381293,3325.7,3325.6,0.73523222]
[1762474117243,0.74600293,3325.7,3325.6,0.00343222]
[1762474117448,0.74600293,3325.7,3325.6,0.49083222]
[1762474118355,0.74600293,3325.7,3325.6,0.00343222]
[1762474118558,0.74600293,3325.7,3325.6,0.49083222]
[1762474118754,0.00381293,3325.7,3325.6,0.49083222]
[1762474118956,0.00381293,3325.7,3325.6,0.74103222]
[1762474120244,0.00381293,3325.7,3325.6,0.49083222]
[1762474120449,0.00381293,3325.7,3325.6,0.74103222]
[1762474121158,0.00381293,3325.7,3325.6,0.25363222]
[1762474121347,0.00381293,3325.7,3325.6,0.74103222]
[1762474121755,0.00381293,3325.7,3325.6,0.49083222]
[1762474121947,0.72570293,3325.7,3325.6,0.00343222]
[1762474122152,0.87396,3325.2,3325.1,3.2078]
[1762474122354,0.48754,3324.7,3324.6,0.48755]
[1762474122755,0.48755,3324.6,3324.5,3.69536]
[1762474123355,0.152,3325.2,3324.5,3.21050725]
[1762474123555,0.152,3325.2,3325.0,0.48748]
[1762474123953,0.48752,3324.9,3324.5,3.21050725]
[1762474124556,0.48752,3324.9,3324.5,3.33082725]
[1762474124859,0.72199,3325.0,3324.9,0.4875]
[1762474126249,0.27232001,3325.2,3324.5,3.21050725]
[1762474126452,0.1203,3325.1,3324.5,3.21050725]
[1762474127363,0.48751,3325.0,3324.9,0.48749]
[1762474127661,0.48753,3324.9,3324.8,0.48752]
[1762474127856,0.2345,3324.7,3324.5,3.21050725]
[1762474128059,0.72205,3324.6,3324.5,3.21050725]
[1762474128362,0.72205,3324.6,3324.5,3.69806725]
[1762474128548,0.72205,3324.6,3324.5,3.21050725]
[1762474128757,0.35482001,3324.6,3324.5,0.00270725]
[1762474128959,0.84237001,3324.6,3324.5,0.49026725]
[1762474129362,0.84237001,3324.6,3324.5,0.00270725]
[1762474129557,0.2345,3324.6,3324.5,0.49026725]
[1762474129769,0.48752,3324.8,3324.7,0.48751]
[1762474131279,0.48751,3324.9,3324.8,0.4875]
[1762474131876,7.56600293,3325.7,3324.5,3.28380725]
[1762474132078,0.48744,3325.4,3325.3,0.73765]
[1762474132278,0.48744,3325.4,3325.3,0.48745]
[1762474132780,0.60769001,3325.6,3325.5,0.48741]
[1762474133282,0.48744,3325.5,3325.4,0.48743]
[1762474134976,0.4874,3325.6,3325.5,0.48742]
[1762474135576,0.4874,3325.6,3325.3,3.2078]
[1762474135777,0.4874,3325.6,3325.5,0.48742]
[1762474136977,0.00381293,3325.7,3325.6,0.7376]
[1762474137478,0.48743,3325.4,3325.3,3.32808]
[1762474137781,0.48743,3325.4,3325.3,3.2078]
[1762474138682,0.12028001,3325.5,3325.4,0.48743]
[1762474139479,0.60770001,3325.5,3325.4,0.48743]
[1762474139983,0.48743,3325.4,3325.3,3.458]
[1762474140576,0.2345,3324.8,3324.7,0.12028]
[1762474140771,0.2345,3324.8,3324.7,0.48753]
[1762474141075,0.48752,3324.9,3324.8,0.48751]
[1762474141671,0.63943,3325.5,3325.4,0.48743]
[1762474141879,0.00381293,3325.7,3325.6,0.4874]
[1762474142078,0.87392,3325.5,3325.4,3.2078]
[1762474142284,0.48746,3325.2,3325.1,0.60774]
[1762474142580,0.48746,3325.2,3325.1,0.48746]
[1762474142781,0.72196,3325.2,3325.1,0.48746]
[1762474143384,0.4875,3325.0,3324.9,0.48748]
[1762474143683,0.72201,3324.9,3324.8,3.2078]
[1762474144383,0.84231,3324.9,3324.8,3.2078]
[1762474144589,0.72205,3324.6,3324.5,0.00270725]
[1762474145581,0.48753,3324.7,3324.6,0.2541]
[1762474145880,0.73275,3324.6,3324.5,0.00270725]
[1762474148086,0.73275,3324.6,3324.2,0.00450931]
[1762474148087,0.73279,3324.3,3324.2,0.00450931]
[1762474149184,0.85311001,3324.3,3324.2,0.00830961]
[1762474149685,9.83779,3324.3,3324.2,9.61e-06]
[1762474149882,10.66088666,3324.3,3324.2,9.61e-06]
[1762474150184,9.96711001,3324.3,3324.2,9.61e-06]
[1762474150780,9.97011001,3324.3,3324.2,9.61e-06]
[1762474151380,0.73279,3324.3,3324.2,9.61e-06]
[1762474151886,0.48759,3324.3,3324.2,9.61e-06]
[1762474152883,0.60791001,3324.3,3324.2,9.61e-06]
[1762474153783,0.75572799,3324.3,3324.2,9.61e-06]
[1762474154583,9.76340798,3324.3,3324.2,9.61e-06]
[1762474155079,0.88060798,3324.3,3324.2,0.48761961]
[1762474155275,0.63540798,3324.3,3324.2,0.48761961]
[1762474155486,0.14781798,3324.3,3324.2,0.48761961]
[1762474155677,0.14781798,3324.3,3324.2,0.74171961]
[1762474155881,0.88060798,3324.3,3324.2,9.61e-06]
[1762474156074,0.14781798,3324.3,3324.2,0.25410961]
[1762474156279,0.14781798,3324.3,3324.2,0.74171961]
[1762474156683,0.14781798,3324.3,3324.2,8.74171961]
[1762474156880,0.48743,3325.5,3325.2,0.2541]
[1762474157081,3.21161293,3325.7,3325.5,0.48741]
[1762474157582,3.21161293,3325.7,3325.6,0.4874]
[1762474157583,0.00381293,3325.7,3325.6,0.4874]
[1762474157780,0.00381293,3325.7,3325.6,0.7415]
[1762474160686,0.00381293,3325.7,3325.6,0.86178]
[1762474161674,0.00381293,3325.7,3325.6,0.12028]
[1762474161879,0.48747,3325.1,3324.9,3.2078]
[1762474162079,0.48747,3325.1,3324.9,3.6953]
[1762474162276,0.2452,3325.0,3324.9,3.6953]
[1762474162485,0.2452,3325.0,3324.9,3.2078]
[1762474163082,0.48749,3325.0,3324.9,3.2078]
[1762474163282,0.1203,3325.4,3325.2,0.2541]
[1762474163485,3.21161293,3325.7,3325.3,3.4619]
[1762474163697,0.48742,3325.5,3325.4,0.48743]
[1762474163986,0.48742,3325.5,3325.4,0.74153]
[1762474165984,0.00381293,3325.7,3325.6,0.4874]
[1762474166286,0.2452,3325.4,3325.2,0.12028]
[1762474166586,0.00381293,3325.7,3325.4,0.2541]
[1762474167278,0.00381293,3325.7,3325.0,0.1473]
[1762474167279,0.48745,3325.3,3325.2,0.48746]
[1762474167486,3.33189294,3325.7,3325.1,0.48748]
[1762474167792,0.48748,3325.2,3325.1,0.74158]
[1762474168087,0.48743,3325.5,3325.0,0.0694]
[1762474168288,0.12409294,3325.7,3325.0,0.0694]
[1762474168289,0.48747,3325.2,3325.1,0.74158]
[1762474172092,0.1203,3325.6,3325.5,0.48742]
[1762474172290,3.21161293,3325.7,3325.6,0.7415]
[1762474173194,0.00381293,3325.7,3325.6,0.7415]
[1762474173687,0.00450931,3326.0,3325.9,0.74146]
[1762474173888,0.00450931,3326.0,3325.9,3.94926]
[1762474174195,0.00450931,3326.0,3325.9,4.06951999]
[1762474174391,0.00450931,3326.0,3325.9,12.06951999]
[1762474174894,0.00698106,3326.0,3325.9,12.06951999]
[1762474175286,3.2078,3326.5,3326.4,0.73399]
[1762474175995,3.2078,3326.5,3326.3,0.12023999]
[1762474175996,0.48729,3326.4,3326.3,0.12023999]
[1762474176193,0.4873,3326.3,3326.2,0.48731]
[1762474176492,0.48733,3326.1,3326.0,0.2467]
[1762474176893,0.48733,3326.1,3326.0,0.36695999]
[1762474177293,0.00255112,3326.3,3326.2,0.48732]
[1762474177994,0.48732,3326.2,3326.1,0.73403]
[1762474178296,0.48985112,3326.3,3326.2,0.48732]
[1762474180098,0.00255112,3326.3,3326.2,0.73192]
[1762474180296,0.48985112,3326.3,3326.2,0.73192]
[1762474180495,0.48985112,3326.3,3326.2,0.2446]
[1762474180699,0.48731,3326.2,3326.1,0.48732]
[1762474180890,0.00255112,3326.3,3326.0,0.12025999]
[1762474180891,0.48985112,3326.3,3326.2,0.48731]
[1762474181491,0.48985112,3326.3,3326.2,0.73191]
[1762474181892,0.00255112,3326.3,3326.2,0.73191]
[1762474183492,0.48985112,3326.3,3326.2,0.2446]
[1762474183797,0.48985112,3326.3,3326.2,0.73191]
[1762474184001,0.00255112,3326.3,3326.2,0.73191]
[1762474186000,0.48985112,3326.3,3326.2,3.93971]
[1762474186301,0.00255112,3326.3,3326.2,3.93972]
[1762474186899,0.48985112,3326.3,3326.2,3.93972]
[1762474188003,0.48985112,3326.3,3326.2,3.4524]
[1762474188393,0.71622,3326.2,3326.1,0.12025999]
[1762474188598,0.48737,3325.8,3325.7,3.4524]
[1762474188996,0.48737,3325.8,3325.7,3.2078]
[1762474189198,0.71627,3325.8,3325.7,3.2078]
[1762474189406,0.71627,3325.8,3325.7,0.48739]
[1762474189607,0.48739,3325.7,3325.6,0.00450931]
[1762474190209,0.00255112,3326.3,3326.0,0.2446]
[1762474190398,0.00255112,3326.3,3325.6,0.00450931]
[1762474190593,0.48739,3325.7,3325.6,0.24910931]
[1762474190797,0.48739,3325.7,3325.6,0.3693693]
[1762474191404,3.2078,3327.3,3326.5,0.385]
[1762474191703,0.49176931,3326.6,3326.5,3.5928]
[1762474192502,0.49433473,3326.6,3326.5,0.2446]
[1762474194603,0.48739,3325.7,3325.6,3.45690931]
[1762474195601,3.92409,3325.7,3325.6,0.00450931]
[1762474195913,4.04437001,3325.7,3325.6,9.31e-06]
[1762474197605,0.1437,3324.5,3324.2,9.61e-06]
[1762474198011,0.48759,3324.3,3324.2,9.61e-06]
[1762474198201,3.69539,3324.3,3324.2,9.61e-06]
[1762474198400,3.81571001,3324.3,3324.2,9.61e-06]
[1762474198598,0.48775,3323.2,3323.1,0.36492]
[1762474199007,0.48775,3323.2,3322.9,3.2078]
[1762474199008,0.48778,3323.0,3322.9,3.4524]
[1762474199209,0.48778,3323.0,3322.9,3.57276]
[1762474199513,0.48784,3322.6,3322.5,3.5928]
[1762474199814,0.4879,3322.2,3322.1,3.4524]
[1762474200110,0.4879,3322.2,3322.1,3.5755409]
[1762474200414,0.48788,3322.4,3322.3,0.2446]
[1762474201610,0.00450931,3322.9,3322.8,0.385]
[1762474201809,0.00450931,3322.9,3322.8,3.5928]
[1762474202023,0.00450931,3322.9,3322.8,3.71318]
[1762474202312,0.00450931,3322.9,3322.8,4.20099]
[1762474202613,0.00450931,3322.9,3322.8,3.71318]
[1762474204503,0.00450931,3322.9,3322.1,0.0027409]
[1762474204504,0.1431,3322.8,3322.1,0.0027409]
[1762474204711,0.00450931,3322.9,3322.8,0.2505]
[1762474204906,0.49230931,3322.9,3322.8,0.3359]
[1762474205306,0.49230931,3322.9,3322.8,3.5437]
[1762474205506,0.49230931,3322.9,3322.8,0.3359]
[1762474206413,0.49230931,3322.9,3322.1,0.0027409]
[1762474206414,0.1431,3322.8,3322.1,0.0027409]
[1762474206610,0.4879,3322.2,3322.1,0.0027409]
[1762474207915,0.48805,3321.2,3321.1,3.2078]
[1762474208117,0.48811,3320.8,3320.7,3.4583]
[1762474208416,0.48811,3320.8,3320.7,3.57872]
[1762474208812,3.2078,3321.5,3320.4,0.1415]
[1762474209007,0.0045163,3321.3,3320.7,0.00374752]
[1762474209311,0.0045163,3321.3,3320.7,3.21154752]
[1762474209523,0.12044,3321.2,3320.7,0.00374752]
[1762474209715,0.48807,3321.1,3321.0,0.2505]
[1762474211014,0.0045163,3321.3,3321.2,0.2505]
[1762474211319,0.48809,3320.9,3320.7,0.00374752]
[1762474211521,0.4881,3320.9,3320.8,3.4583]
[1762474211714,0.4881,3320.9,3320.8,0.2505]
[1762474213215,0.0045163,3321.3,3320.7,0.12418751]
[1762474213216,0.73281,3320.8,3320.7,0.00374752]
[1762474214716,0.85327,3320.8,3320.7,0.00374752]
[1762474217516,0.1431,3321.0,3320.6,6.3e-06]
[1762474217517,0.73282,3320.7,3320.6,6.3e-06]
[1762474217721,0.73292,3320.0,3319.9,3.2078]
[1762474218028,0.73298,3319.6,3319.5,3.2078]
[1762474218213,0.48839,3318.9,3318.8,0.2505]
[1762474218518,0.49155198,3318.9,3318.8,0.25283839]
[1762474219120,0.49155198,3318.9,3318.8,0.00233839]
[1762474219517,0.00316198,3318.9,3318.8,0.25283839]
[1762474219720,0.00316198,3318.9,3318.8,3.46063839]
[1762474220320,0.49154198,3318.9,3318.8,3.46063839]
[1762474220515,0.49154198,3318.9,3318.8,0.25283839]
[1762474221312,0.00316198,3318.9,3318.8,3.46063839]
[1762474221517,0.49154198,3318.9,3318.8,0.25283839]
[1762474222617,0.49154198,3318.9,3318.8,0.00233839]
[1762474223118,0.49154198,3318.9,3318.8,0.25283839]
[1762474224026,0.00316198,3318.9,3318.8,3.46063839]
[1762474224329,0.49155198,3318.9,3318.8,3.46063839]
[1762474226830,0.00316198,3318.9,3318.8,3.94903839]
[1762474227031,0.00316198,3318.9,3318.8,3.46063839]
[1762474227328,0.49154198,3318.9,3318.8,3.46063839]
[1762474229627,0.73624198,3318.9,3318.8,0.00233839]
[1762474230023,3.94404198,3318.9,3318.8,0.00233839]
[1762474230228,0.48852,3318.0,3317.9,3.4583]
[1762474230532,0.48852,3318.0,3317.9,0.2505]
[1762474230730,0.48856,3317.7,3317.6,0.2505]
[1762474230921,3.2078,3318.1,3317.5,3.2078]
[1762474230922,0.48858,3317.6,3317.5,3.2078]
[1762474231132,0.48864,3317.2,3317.1,3.4583]
[1762474231337,0.48864,3317.2,3317.1,3.46074401]
[1762474232027,0.0045163,3317.5,3317.1,3.46074401]
[1762474232230,0.0045163,3317.5,3317.4,0.2505]
[1762474232625,0.0045163,3317.5,3317.4,0.82011]
[1762474232828,0.0045163,3317.5,3317.4,0.45207999]
[1762474233239,0.0045163,3317.5,3317.4,0.94068999]
[1762474233838,0.4931063,3317.5,3317.4,0.45207999]
[1762474234037,0.4931063,3317.5,3317.4,0.3315]
[1762474234534,0.0045163,3317.5,3317.4,0.82011]
[1762474234927,0.48852,3318.0,3317.9,0.2409]
[1762474235130,0.48852,3318.0,3317.9,3.4487]
[1762474236137,0.73866,3317.7,3317.6,0.0045163]
[1762474236836,3.3584,3318.0,3317.7,0.2409]
[1762474236837,0.12056,3318.0,3317.7,0.2409]
[1762474237036,0.0045163,3318.3,3317.9,0.72942]
[1762474237234,0.0045163,3318.3,3318.2,3.93719]
[1762474237436,0.00316198,3318.9,3318.8,0.7293]
[1762474238849,0.00316198,3318.9,3318.8,0.84982]
[1762474239140,0.00316198,3318.9,3318.8,0.7293]
[1762474239339,0.0045163,3319.2,3319.1,0.73336]
[1762474239641,0.0045163,3319.2,3319.1,3.94116]
[1762474240138,3.32832,3320.1,3319.9,0.48824]
[1762474240339,3.3584,3320.5,3319.7,3.2078]
[1762474240536,0.00241469,3320.1,3319.9,0.00277016]
[1762474240737,0.00241469,3320.1,3320.0,0.73322]
[1762474240939,0.00241469,3320.1,3320.0,0.245]
[1762474242239,0.48822,3320.0,3319.9,0.00277016]
[1762474242439,0.00241469,3320.1,3320.0,0.245]
[1762474242738,0.00241469,3320.1,3319.9,0.00277016]
[1762474242939,0.8417,3320.0,3319.9,0.00277016]
[1762474243145,0.87165,3319.8,3319.7,0.0045163]
[1762474243347,0.48837,3319.0,3318.9,3.2078]
[1762474243744,0.84189,3319.0,3318.9,3.2078]
[1762474243947,0.72137,3319.0,3318.9,3.2078]
[1762474244246,0.48844,3318.6,3318.5,3.2078]
[1762474244649,0.48844,3318.6,3318.5,3.21129348]
[1762474245540,0.4884,3318.8,3318.7,0.48841]
[1762474245846,0.4884,3318.8,3318.5,3.21129348]
[1762474245847,3.2078,3319.7,3318.9,0.245]
[1762474246050,0.48834,3319.2,3319.1,0.245]
[1762474246747,0.48843,3318.6,3318.5,3.21129348]
[1762474246950,0.1504,3319.2,3318.6,0.48843]
[1762474247146,0.12052,3319.1,3318.6,0.48843]
[1762474247552,0.12052,3319.0,3318.6,0.48843]
[1762474247848,0.1504,3319.2,3318.7,0.48841]
[1762474248054,0.12052,3319.1,3318.7,0.48841]
[1762474248446,0.4884,3318.8,3318.5,3.21129348]
[1762474248646,0.1504,3319.2,3318.5,3.21129348]
[1762474248951,0.12052,3319.1,3318.8,0.4884]
[1762474249348,0.1504,3319.2,3318.8,0.4884]
[1762474249752,0.1504,3319.2,3318.5,3.21129348]
[1762474249954,0.48843,3318.6,3318.5,3.94473348]
[1762474250142,0.48842,3318.7,3318.6,0.48843]
[1762474250348,0.4884,3318.9,3318.5,3.21129348]
[1762474250749,0.4884,3318.9,3318.8,0.4884]
[1762474251445,0.1504,3319.8,3318.6,0.1383]
[1762474251446,3.2078,3319.7,3318.6,0.1383]
[1762474251647,0.48826,3319.8,3319.7,0.48826]
[1762474251850,0.48826,3319.8,3319.2,0.1383]
[1762474251851,0.4883,3319.6,3319.5,0.7333]
[1762474252353,3.21021469,3320.1,3319.7,0.48827]
[1762474252354,0.48827,3319.8,3319.7,0.48827]
[1762474252654,0.48829,3319.7,3319.6,0.48828]
[1762474254352,0.12050001,3319.9,3319.7,0.48826]
[1762474254546,0.48825,3319.8,3319.7,0.48826]
[1762474254750,0.48827,3319.7,3319.6,3.2078]
[1762474254943,0.72127,3319.7,3319.6,3.2078]
[1762474255149,0.12050001,3319.7,3319.0,3.69617]
[1762474255354,0.48836,3319.1,3319.0,3.2078]
[1762474256050,0.02,7000.0,3319.5,0.48828]
[1762474256051,0.48829,3319.6,3319.5,0.48828]
[1762474256244,0.48829,3319.6,3319.5,3.94108]
[1762474256447,3.2078,3320.3,3319.5,3.2078]
[1762474256650,0.72122,3320.0,3319.9,0.48823]
[1762474256953,0.48824,3319.9,3319.8,0.73324]
[1762474257152,0.48824,3319.9,3319.5,3.3461]
[1762474257153,0.48823,3320.0,3319.9,0.48824]
[1762474257457,3.2078,3320.3,3320.0,0.48822]
[1762474257756,0.48823,3320.0,3319.9,0.245]
[1762474258250,0.6111247,3320.1,3320.0,0.48822]
[1762474258451,0.48822,3320.0,3319.9,3.94104]
[1762474258848,0.49062469,3320.1,3320.0,0.48822]
[1762474259057,0.48822,3320.0,3319.9,0.245]
[1762474259648,0.49063469,3320.1,3320.0,0.48822]
[1762474259858,0.48822,3320.0,3319.9,3.2078]
[1762474260056,0.48822,3320.0,3319.9,3.4528]
[1762474260260,0.48822,3320.0,3319.9,3.2078]
[1762474260660,0.00241469,3320.1,3320.0,0.48822]
[1762474261052,0.00241469,3320.1,3320.0,0.73322]
[1762474261561,0.48822,3320.0,3319.9,3.2078]
[1762474261758,0.48822,3320.0,3319.9,3.94104]
[1762474262060,0.00241469,3320.1,3320.0,0.48822]
[1762474262257,0.00241469,3320.1,3320.0,0.73322]
[1762474262558,0.0045163,3320.4,3320.3,0.73318]
[1762474262755,0.48811,3320.8,3320.7,0.7331]
[1762474263456,0.12046,3320.9,3320.7,0.245]
[1762474263752,0.00213354,3320.9,3320.8,3.94091]
[1762474264156,0.00213354,3320.9,3320.8,4.06136999]
[1762474264356,3.2078,3321.9,3320.8,4.06136999]
[1762474264357,0.48795,3321.9,3321.0,0.1383]
[1762474264669,3.2078,3322.3,3321.0,0.1383]
[1762474264670,0.60837,3322.0,3321.9,0.2541]
[1762474264959,0.12044,3322.0,3321.9,0.74205]
[1762474265162,9.2494,3323.0,3322.0,0.1383]
[1762474265364,0.6082,3322.9,3322.6,0.48784]
[1762474265565,0.0045163,3322.8,3322.6,0.48784]
[1762474265763,0.1248963,3322.8,3322.6,0.48784]
[1762474265961,0.1248963,3322.8,3322.7,0.2541]
[1762474265962,0.0045163,3322.8,3322.7,0.2541]
[1762474266864,1.63e-05,3322.8,3322.7,8.2541]
[1762474267166,0.12038,3323.8,3323.7,0.2541]
[1762474267360,0.1396,3324.0,3323.6,0.48769]
[1762474267558,0.1396,3324.0,3323.7,3.69548]
[1762474267865,0.48757,3324.5,3324.2,0.4876]
[1762474268064,0.12034,3324.4,3324.3,0.74169]
[1762474268367,0.00213602,3324.5,3324.4,0.2541]
[1762474268562,0.00213602,3324.5,3324.4,0.25728348]
[1762474268968,0.00213602,3324.5,3324.4,0.37760348]
[1762474269664,0.00213602,3324.5,3324.4,0.25728348]
[1762474269968,0.00213602,3324.5,3324.4,0.37760348]
[1762474270169,0.00213602,3324.5,3324.4,0.25728348]
[1762474270665,0.00213602,3324.5,3324.4,9.36528348]
[1762474273172,0.35385603,3324.5,3324.4,0.00318348]
[1762474273767,0.35385603,3324.5,3324.0,0.0045163]
[1762474273768,0.71902,3324.1,3324.0,0.0045163]
[1762474273965,3.92682,3324.1,3324.0,0.0045163]
[1762474274371,4.04716,3324.1,3324.0,0.0045163]
[1762474274772,4.04716,3324.1,3324.0,0.00748759]
[1762474275873,0.1396,3324.0,3323.2,3.2078]
[1762474276083,0.48772,3323.5,3323.4,0.48772]
[1762474276372,0.12036,3323.9,3323.2,3.2078]
[1762474276572,3.2078,3324.1,3323.9,0.48765]
[1762474276772,3.69542,3324.1,3323.9,0.48765]
[1762474276967,3.2078,3324.1,3323.9,0.49053758]
[1762474277163,0.60797,3324.2,3324.0,0.48764]
[1762474277366,0.48762,3324.1,3324.0,0.48764]
[1762474277567,0.48763,3324.1,3324.0,0.48764]
[1762474277771,0.48764,3324.0,3323.9,3.21068758]
[1762474277969,0.85864,3324.0,3323.9,0.00288758]
[1762474278173,0.371,3324.0,3323.9,0.00288758]
[1762474278373,0.97898,3324.0,3323.9,0.49053758]
[1762474278568,0.97898,3324.0,3323.9,0.00288758]
[1762474279580,0.71907,3323.8,3323.7,0.0045163]
[1762474279780,3.92687,3323.8,3323.7,0.0045163]
[1762474280274,4.04721,3323.8,3323.7,0.0045163]
[1762474280474,4.04721,3323.8,3323.7,0.00716745]
[1762474281068,0.71916,3323.2,3323.1,3.2078]
[1762474281376,0.71916,3323.2,3323.1,0.48777]
[1762474282077,0.71916,3323.2,3323.1,0.00296344]
[1762474282380,0.71916,3323.2,3323.1,0.49073344]
[1762474282879,0.71916,3323.2,3323.1,0.00296344]
[1762474284871,0.7192,3322.9,3322.8,0.0045163]
[1762474285276,4.04738,3322.9,3322.8,0.0045163]
[1762474285480,0.71927,3322.4,3322.3,3.2078]
[1762474285773,0.12038,3322.8,3322.7,0.48783]
[1762474285972,0.48782,3322.8,3322.7,0.49145062]
[1762474286175,0.48782,3322.8,3322.7,0.00363062]
[1762474286380,0.71922,3322.8,3322.7,0.00363062]
[1762474286581,0.71922,3322.8,3322.7,0.49146062]
[1762474287484,0.71922,3322.8,3322.7,0.00363062]
[1762474287970,0.8396,3322.8,3322.7,3.062e-05]
[1762474288578,0.71922,3322.8,3322.7,0.48786062]
[1762474288876,0.71922,3322.8,3322.7,3.062e-05]
[1762474289076,0.48782,3322.8,3322.7,3.062e-05]
[1762474289272,0.6082,3322.8,3322.7,3.062e-05]
[1762474289787,0.00213602,3324.5,3324.4,0.74168]
[1762474290078,0.1396,3325.5,3324.7,0.48752]
[1762474290286,0.48751,3324.9,3324.7,3.2078]
[1762474290580,0.2314,3324.8,3324.7,3.2078]
[1762474290988,0.23362442,3324.8,3324.7,3.2078]
[1762474292082,0.371,3324.6,3324.5,0.0045163]
[1762474292478,0.49132001,3324.6,3324.5,0.0045163]
[1762474293486,0.71908,3323.7,3323.6,3.2078]
[1762474293682,0.2314,3323.3,3323.2,3.2078]
[1762474294182,0.62733,3323.4,3322.8,3.2078]
[1762474294183,0.7192,3322.9,3322.8,3.2078]
[1762474294378,0.1396,3322.8,3322.5,0.0045163]
[1762474294781,0.25998,3322.8,3322.5,0.0045163]
[1762474295083,0.74086,3322.5,3322.0,3.2078]
[1762474295379,0.74086,3322.5,3321.6,0.48798]
[1762474295380,0.48797,3321.8,3321.6,3.2078]
[1762474295583,0.1396,3322.8,3321.2,3.2078]
[1762474295584,0.48803,3321.3,3321.2,3.2078]
[1762474295778,0.48802,3321.4,3321.2,3.2078]
[1762474296079,0.00314861,3321.3,3321.2,3.2101366]
[1762474299788,0.21884861,3321.3,3321.2,3.2101366]
[1762474301581,0.70687861,3321.3,3321.2,3.2101366]
[1762474302283,0.00314861,3321.3,3321.2,3.9436866]
[1762474302484,3.2078,3322.7,3322.2,0.1392]
[1762474302783,3.3282,3323.1,3322.3,3.2078]
[1762474302986,3.2078,3323.1,3322.3,3.2078]
[1762474303283,3.2078,3323.1,3322.7,0.48782]
[1762474303493,3.33179925,3323.1,3322.3,3.2078]
[1762474303678,0.48783,3322.7,3322.6,0.48784]
[1762474303880,3.33179925,3323.1,3322.3,3.69569]
[1762474304082,0.48786,3322.5,3322.4,0.48787]
[1762474304381,0.48785,3322.6,3322.3,3.2078]
[1762474304687,0.4878,3323.0,3322.9,0.48779]
[1762474304987,0.48781,3322.8,3322.7,3.2078]
[1762474306183,0.48781,3322.8,3322.7,3.69563]
[1762474306384,0.48781,3322.9,3322.8,0.1392]
[1762474306888,0.48781,3322.9,3322.8,0.62701]
[1762474307686,0.48779,3323.0,3322.9,0.4878]
[1762474307890,0.4878,3322.9,3322.8,0.62701]
[1762474308778,0.4878,3322.9,3322.8,0.3847]
[1762474309489,0.00361925,3323.1,3323.0,0.73328]
[1762474312790,0.49138925,3323.1,3323.0,0.2455]
[1762474313293,0.49138925,3323.1,3322.8,0.1392]
[1762474313294,0.4878,3322.9,3322.8,0.1392]
[1762474313996,0.48781,3322.8,3322.7,3.69563]
[1762474314196,0.48781,3322.8,3322.7,3.94113]
[1762474314594,0.48781,3322.9,3322.8,0.62699]
[1762474314793,0.49140925,3323.1,3323.0,0.48778]
[1762474314993,0.49140925,3323.1,3323.0,0.73328]
[1762474316389,0.49140925,3323.1,3323.0,0.2455]
[1762474316891,0.49140925,3323.1,3323.0,0.73328]
[1762474318611,0.00361925,3323.1,3323.0,0.73328]
[1762474320400,0.00361925,3323.1,3323.0,0.85366]
[1762474320995,1.925e-05,3323.1,3323.0,0.85366]
[1762474321198,0.48767,3323.8,3323.7,0.48765]
[1762474321397,0.48767,3323.8,3323.7,3.94095]
[1762474321602,0.48762,3324.1,3324.0,0.62683]
[1762474322100,0.49006741,3324.1,3324.0,0.14229603]
[1762474322296,0.49006741,3324.1,3323.7,3.2078]
[1762474322297,0.71027,3323.8,3323.7,3.2078]
[1762474322700,0.83061,3323.8,3323.7,3.2078]
[1762474323304,0.83061,3323.8,3322.5,0.1392]
[1762474323305,0.48783,3322.7,3322.5,0.62705]
[1762474323496,0.48783,3322.7,3322.6,0.00734364]
[1762474323901,0.12038,3323.1,3323.0,0.87248]
[1762474324100,0.48769,3323.7,3323.5,0.1392]
[1762474324304,0.48768,3323.7,3323.6,0.4877]